[Event "*** Titled Tuesday Blitz"]
[Site "Chess.com"]
[Date "2018.01.02"]
[Round "2"]
[White "GremioPrudente"]
[Black "julinha97"]
[Result "0-1"]
[WhiteElo "2045"]
[BlackElo "2212"]
[TimeControl "180+2"]
[EndTime "13:23:22 PST"]
[Termination "julinha97 won on time"]

1. Nf3 {[%clk 0:03:01.9]} 1... Nf6 {[%clk 0:03:00.6]} 2. c4 {[%clk 0:03:01.5]}
2... g6 {[%clk 0:03:01.7]} 3. b3 {[%clk 0:03:01.2]} 3... Bg7 {[%clk 0:03:02.4]}
4. Bb2 {[%clk 0:03:02.7]} 4... O-O {[%clk 0:03:04]} 5. e3 {[%clk 0:03:00.6]}
5... d6 {[%clk 0:03:05.2]} 6. d4 {[%clk 0:03:00.9]} 6... Nbd7 {[%clk 0:02:57.5]}
7. Be2 {[%clk 0:03:01]} 7... Re8 {[%clk 0:02:53.4]} 8. O-O {[%clk 0:03:00.3]}
8... c6 {[%clk 0:02:38.5]} 9. Qc2 {[%clk 0:02:30.9]} 9... e5 {[%clk 0:02:36.4]}
10. dxe5 {[%clk 0:02:27.3]} 10... dxe5 {[%clk 0:02:36]} 11. Nc3 {[%clk
0:02:26.8]} 11... Qc7 {[%clk 0:02:36.5]} 12. Rad1 {[%clk 0:02:27.1]} 12... Nc5
{[%clk 0:02:35.5]} 13. Qb1 {[%clk 0:02:07.3]} 13... Bf5 {[%clk 0:02:31.5]} 14.
Qa1 {[%clk 0:02:04.8]} 14... a5 {[%clk 0:02:30.3]} 15. Nh4 {[%clk 0:02:00.6]}
15... Rad8 {[%clk 0:02:08]} 16. Nxf5 {[%clk 0:02:01.1]} 16... gxf5 {[%clk
0:02:08.5]} 17. Rxd8 {[%clk 0:02:01.9]} 17... Rxd8 {[%clk 0:02:09.1]} 18. Rd1
{[%clk 0:02:02.7]} 18... Rxd1+ {[%clk 0:01:50.9]} 19. Qxd1 {[%clk 0:02:01.6]}
19... e4 {[%clk 0:01:51.3]} 20. Qd2 {[%clk 0:01:35]} 20... Ne6 {[%clk
0:01:50.3]} 21. Na4 {[%clk 0:01:28.6]} 21... f4 {[%clk 0:01:31.8]} 22. Bxf6
{[%clk 0:00:53.2]} 22... Bxf6 {[%clk 0:01:32.3]} 23. exf4 {[%clk 0:00:53]} 23...
Nxf4 {[%clk 0:01:31.8]} 24. Bf1 {[%clk 0:00:42.2]} 24... Ne6 {[%clk 0:01:20.7]}
25. Qe3 {[%clk 0:00:38.9]} 25... Qe5 {[%clk 0:01:18]} 26. Qg3+ {[%clk
0:00:34.8]} 26... Qxg3 {[%clk 0:01:16.3]} 27. hxg3 {[%clk 0:00:36.3]} 27... Nd4
{[%clk 0:01:15.1]} 28. Nc3 {[%clk 0:00:32.6]} 28... e3 {[%clk 0:01:09.5]} 29.
fxe3 {[%clk 0:00:31.7]} 29... Nf5 {[%clk 0:01:11.2]} 30. Ne4 {[%clk 0:00:26.5]}
30... Bb2 {[%clk 0:01:09.3]} 31. Kf2 {[%clk 0:00:27.1]} 31... Bc1 {[%clk
0:01:10.2]} 32. Bd3 {[%clk 0:00:21.8]} 32... Bxe3+ {[%clk 0:01:09.9]} 33. Kf3
{[%clk 0:00:20.3]} 33... Bc1 {[%clk 0:01:06.3]} 34. Nc3 {[%clk 0:00:18.4]} 34...
Nd4+ {[%clk 0:01:05.7]} 35. Kf2 {[%clk 0:00:16.8]} 35... Ne6 {[%clk 0:01:06]}
36. Ne2 {[%clk 0:00:17.7]} 36... Ba3 {[%clk 0:01:05.5]} 37. Nf4 {[%clk
0:00:17.9]} 37... Bc5+ {[%clk 0:01:05.2]} 38. Ke1 {[%clk 0:00:15.6]} 38... Ng5
{[%clk 0:00:57.3]} 39. Kd2 {[%clk 0:00:15.2]} 39... Kf8 {[%clk 0:00:58.8]} 40.
Ke2 {[%clk 0:00:15.7]} 40... Ke7 {[%clk 0:00:59.5]} 41. Bc2 {[%clk 0:00:12.9]}
41... Kd6 {[%clk 0:00:56.9]} 42. Nd3 {[%clk 0:00:13.3]} 42... Ba7 {[%clk
0:00:54.9]} 43. Bb1 {[%clk 0:00:14.3]} 43... Ke7 {[%clk 0:00:53.8]} 44. Bc2
{[%clk 0:00:14.7]} 44... Bb8 {[%clk 0:00:54.7]} 45. Kf2 {[%clk 0:00:13.5]} 45...
Ne4+ {[%clk 0:00:54.5]} 46. Kf3 {[%clk 0:00:13.5]} 46... Nxg3 {[%clk 0:00:55.1]}
47. Nc5 {[%clk 0:00:14.3]} 47... b6 {[%clk 0:00:53.6]} 48. Ne4 {[%clk
0:00:12.7]} 48... Nf5 {[%clk 0:00:53.2]} 49. Ng5 {[%clk 0:00:10.7]} 49... Nd4+
{[%clk 0:00:54.3]} 50. Kf2 {[%clk 0:00:07.4]} 50... Nxc2 {[%clk 0:00:55.3]} 51.
Nxh7 {[%clk 0:00:08]} 51... Bf4 {[%clk 0:00:55.6]} 52. g3 {[%clk 0:00:08.2]}
52... Bh6 {[%clk 0:00:56.2]} 0-1

[Event "*** Titled Tuesday Blitz"]
[Site "Chess.com"]
[Date "2018.01.02"]
[Round "2"]
[White "gmmoranda"]
[Black "RaphaeI"]
[Result "1-0"]
[WhiteElo "2726"]
[BlackElo "2500"]
[TimeControl "180+2"]
[EndTime "13:23:31 PST"]
[Termination "gmmoranda won on time"]

1. d4 {[%clk 0:03:01.9]} 1... Nf6 {[%clk 0:03:00.6]} 2. c4 {[%clk 0:03:03]} 2...
e6 {[%clk 0:03:01.2]} 3. Nf3 {[%clk 0:03:04.3]} 3... d5 {[%clk 0:03:01.8]} 4.
Nc3 {[%clk 0:03:05.3]} 4... Bb4 {[%clk 0:03:03.1]} 5. Qb3 {[%clk 0:03:04.8]}
5... c5 {[%clk 0:03:03.4]} 6. dxc5 {[%clk 0:03:06.2]} 6... Nc6 {[%clk
0:03:01.2]} 7. a3 {[%clk 0:02:55.8]} 7... Bxc5 {[%clk 0:02:15.6]} 8. cxd5 {[%clk
0:02:35.4]} 8... Nxd5 {[%clk 0:02:15.7]} 9. Nxd5 {[%clk 0:02:18.5]} 9... Qxd5
{[%clk 0:02:15]} 10. Qxd5 {[%clk 0:02:19.4]} 10... exd5 {[%clk 0:02:16.9]} 11.
b4 {[%clk 0:02:20.6]} 11... Bb6 {[%clk 0:02:17.5]} 12. Bb2 {[%clk 0:02:21.4]}
12... O-O {[%clk 0:02:17.4]} 13. e3 {[%clk 0:02:22.3]} 13... Bg4 {[%clk
0:02:12]} 14. Be2 {[%clk 0:02:20.4]} 14... Rfd8 {[%clk 0:02:06.9]} 15. O-O-O
{[%clk 0:02:09.5]} 15... Rac8 {[%clk 0:01:31.2]} 16. Kb1 {[%clk 0:02:10.2]}
16... Bf5+ {[%clk 0:01:32.4]} 17. Bd3 {[%clk 0:02:11.5]} 17... Be4 {[%clk
0:01:34.3]} 18. Bxe4 {[%clk 0:02:11.4]} 18... dxe4 {[%clk 0:01:35.5]} 19. Ng5
{[%clk 0:02:12.8]} 19... Re8 {[%clk 0:01:17.1]} 20. Rd7 {[%clk 0:02:05.8]} 20...
Rc7 {[%clk 0:01:14.9]} 21. Rhd1 {[%clk 0:02:01.7]} 21... Rxd7 {[%clk 0:01:10.4]}
22. Rxd7 {[%clk 0:02:02.2]} 22... f6 {[%clk 0:01:00.7]} 23. Nh3 {[%clk 0:01:59]}
23... Re7 {[%clk 0:01:00.6]} 24. Rd5 {[%clk 0:01:27.2]} 24... Bc7 {[%clk
0:00:59.3]} 25. Nf4 {[%clk 0:01:27.3]} 25... a6 {[%clk 0:00:51.2]} 26. Ne2
{[%clk 0:01:15.4]} 26... Kf7 {[%clk 0:00:46.8]} 27. h3 {[%clk 0:01:11.8]} 27...
Be5 {[%clk 0:00:44.5]} 28. Nc3 {[%clk 0:01:09.1]} 28... Ke6 {[%clk 0:00:34.5]}
29. Rc5 {[%clk 0:01:07.9]} 29... Bxc3 {[%clk 0:00:32.9]} 30. Bxc3 {[%clk
0:01:09]} 30... Rd7 {[%clk 0:00:34.8]} 31. Kc2 {[%clk 0:01:07.7]} 31... Rd5
{[%clk 0:00:27.1]} 32. Rc4 {[%clk 0:01:06.8]} 32... f5 {[%clk 0:00:08.5]} 33.
Bxg7 {[%clk 0:01:06.8]} 33... Rd3 {[%clk 0:00:04.9]} 34. Bc3 {[%clk 0:01:02.7]}
34... Kd6 {[%clk 0:00:03.6]} 35. Rc5 {[%clk 0:00:50.2]} 35... Rd5 {[%clk
0:00:04.2]} 36. Rxd5+ {[%clk 0:00:47.4]} 36... Kxd5 {[%clk 0:00:06.1]} 37. Kb3
{[%clk 0:00:44.2]} 37... h5 {[%clk 0:00:07.2]} 38. Bf6 {[%clk 0:00:43.1]} 38...
b5 {[%clk 0:00:08.3]} 39. Kc3 {[%clk 0:00:44.3]} 39... Nb8 {[%clk 0:00:08.2]}
40. f3 {[%clk 0:00:42.9]} 40... Nd7 {[%clk 0:00:09.1]} 41. Bd4 {[%clk
0:00:44.1]} 41... Nf8 {[%clk 0:00:09.6]} 42. Bc5 {[%clk 0:00:42.8]} 42... Ne6
{[%clk 0:00:10.4]} 43. Be7 {[%clk 0:00:44]} 43... f4 {[%clk 0:00:05.5]} 44. Kd2
{[%clk 0:00:40.7]} 44... exf3 {[%clk 0:00:05.1]} 45. gxf3 {[%clk 0:00:41.1]}
45... fxe3+ {[%clk 0:00:06.5]} 46. Kxe3 {[%clk 0:00:42.3]} 46... Nd4 {[%clk
0:00:08.4]} 47. Kf4 {[%clk 0:00:33.9]} 47... Nc2 {[%clk 0:00:07.5]} 48. Kg5
{[%clk 0:00:34.7]} 48... Nxa3 {[%clk 0:00:08.5]} 49. f4 {[%clk 0:00:36.1]} 49...
Ke6 {[%clk 0:00:08.6]} 50. Bc5 {[%clk 0:00:33.8]} 50... Nc4 {[%clk 0:00:09]} 51.
Kg6 {[%clk 0:00:34.7]} 51... Kd7 {[%clk 0:00:05.1]} 52. Kxh5 {[%clk 0:00:28.4]}
52... Ke8 {[%clk 0:00:02.6]} 53. Kg6 {[%clk 0:00:28.7]} 1-0

[Event "*** Titled Tuesday Blitz"]
[Site "Chess.com"]
[Date "2018.01.02"]
[Round "2"]
[White "catalin009"]
[Black "Kirill_Klukin"]
[Result "0-1"]
[WhiteElo "2354"]
[BlackElo "2447"]
[TimeControl "180+2"]
[EndTime "13:23:33 PST"]
[Termination "Kirill_Klukin won by resignation"]

1. e4 {[%clk 0:03:01.9]} 1... c5 {[%clk 0:03:00.3]} 2. Nf3 {[%clk 0:03:02.3]}
2... Nc6 {[%clk 0:03:01.6]} 3. Bb5 {[%clk 0:03:03.7]} 3... d6 {[%clk 0:03:02.4]}
4. O-O {[%clk 0:03:00.5]} 4... Bd7 {[%clk 0:03:01.6]} 5. Re1 {[%clk 0:03:01.4]}
5... Nf6 {[%clk 0:03:02.9]} 6. c3 {[%clk 0:03:01.6]} 6... a6 {[%clk 0:02:58.1]}
7. Bc4 {[%clk 0:03:01.7]} 7... b5 {[%clk 0:02:58.3]} 8. Bf1 {[%clk 0:03:00.8]}
8... Bg4 {[%clk 0:02:58.6]} 9. d4 {[%clk 0:02:53.7]} 9... cxd4 {[%clk
0:02:56.6]} 10. cxd4 {[%clk 0:02:54.3]} 10... d5 {[%clk 0:02:57.5]} 11. exd5
{[%clk 0:02:22.7]} 11... Nxd5 {[%clk 0:02:55.3]} 12. Nc3 {[%clk 0:02:19.2]}
12... e6 {[%clk 0:02:55.8]} 13. Bg5 {[%clk 0:02:11.5]} 13... Be7 {[%clk
0:02:22.6]} 14. Bxe7 {[%clk 0:02:10.1]} 14... Ncxe7 {[%clk 0:02:23.4]} 15. Be2
{[%clk 0:02:06.4]} 15... O-O {[%clk 0:02:20.2]} 16. Ne5 {[%clk 0:02:05.2]} 16...
Bxe2 {[%clk 0:02:15.7]} 17. Qxe2 {[%clk 0:02:06.3]} 17... Rc8 {[%clk 0:02:16.8]}
18. Ne4 {[%clk 0:02:06.8]} 18... Nf5 {[%clk 0:02:14.8]} 19. Red1 {[%clk
0:01:57.7]} 19... Nd6 {[%clk 0:02:15.3]} 20. Nc5 {[%clk 0:01:57.2]} 20... Qe7
{[%clk 0:01:52.2]} 21. Nxa6 {[%clk 0:01:46.7]} 21... Nc4 {[%clk 0:01:52.8]} 22.
Nxc4 {[%clk 0:01:43.6]} 22... bxc4 {[%clk 0:01:50.9]} 23. Nc5 {[%clk 0:01:41.4]}
23... c3 {[%clk 0:01:51.8]} 24. Rac1 {[%clk 0:01:30.1]} 24... cxb2 {[%clk
0:01:38.8]} 25. Qxb2 {[%clk 0:01:32]} 25... Qg5 {[%clk 0:01:40.2]} 26. Qd2
{[%clk 0:00:45.5]} 26... Qh4 {[%clk 0:01:28.8]} 27. Nd7 {[%clk 0:00:34.7]} 27...
Rxc1 {[%clk 0:01:21.5]} 28. Rxc1 {[%clk 0:00:36.6]} 28... Rd8 {[%clk 0:01:21]}
29. Ne5 {[%clk 0:00:36.3]} 29... h6 {[%clk 0:01:20.4]} 30. Nf3 {[%clk
0:00:31.1]} 30... Qf6 {[%clk 0:01:19.4]} 31. Rc6 {[%clk 0:00:16.3]} 31... g5
{[%clk 0:01:19.2]} 32. h3 {[%clk 0:00:17.1]} 32... Nf4 {[%clk 0:01:19.4]} 33.
Qe3 {[%clk 0:00:17.9]} 33... Ra8 {[%clk 0:01:17]} 34. a3 {[%clk 0:00:16.7]}
34... Nd5 {[%clk 0:01:06.8]} 35. Qb3 {[%clk 0:00:17.7]} 35... Qf4 {[%clk
0:01:04.8]} 36. g3 {[%clk 0:00:09.9]} 36... Qe4 {[%clk 0:00:57.8]} 37. Kg2
{[%clk 0:00:10.6]} 37... Nf4+ {[%clk 0:00:52.7]} 38. gxf4 {[%clk 0:00:10.3]}
38... Qxc6 {[%clk 0:00:53.9]} 39. fxg5 {[%clk 0:00:11.8]} 39... hxg5 {[%clk
0:00:55.4]} 40. Qe3 {[%clk 0:00:11]} 40... Ra5 {[%clk 0:00:54.5]} 41. Kg3 {[%clk
0:00:11.6]} 41... Qd6+ {[%clk 0:00:52.2]} 42. Kg2 {[%clk 0:00:09.5]} 42... Qf4
{[%clk 0:00:52.2]} 43. Qc3 {[%clk 0:00:09.4]} 43... Rf5 {[%clk 0:00:52.6]} 44.
Qc6 {[%clk 0:00:08.9]} 44... g4 {[%clk 0:00:52.3]} 45. Qe8+ {[%clk 0:00:05.6]}
45... Kg7 {[%clk 0:00:52.4]} 46. Ne5 {[%clk 0:00:07.5]} 46... Qxf2+ {[%clk
0:00:46.6]} 47. Kh1 {[%clk 0:00:08]} 47... g3 {[%clk 0:00:39.1]} 0-1

[Event "*** Titled Tuesday Blitz"]
[Site "Chess.com"]
[Date "2018.01.02"]
[Round "2"]
[White "Kawhi_Leonard2"]
[Black "Colombiano07"]
[Result "1/2-1/2"]
[WhiteElo "2160"]
[BlackElo "2193"]
[TimeControl "180+2"]
[EndTime "13:23:43 PST"]
[Termination "Game drawn by stalemate"]

1. e4 {[%clk 0:03:01.5]} 1... e6 {[%clk 0:03:01]} 2. d4 {[%clk 0:03:01.8]} 2...
d5 {[%clk 0:03:02.6]} 3. Nd2 {[%clk 0:03:03.3]} 3... Nf6 {[%clk 0:03:01.9]} 4.
e5 {[%clk 0:03:04.4]} 4... Nfd7 {[%clk 0:03:03.5]} 5. Bd3 {[%clk 0:03:05.4]}
5... c5 {[%clk 0:03:04.9]} 6. c3 {[%clk 0:03:06.6]} 6... Nc6 {[%clk 0:03:06.6]}
7. Ne2 {[%clk 0:03:06.8]} 7... cxd4 {[%clk 0:03:08.1]} 8. cxd4 {[%clk
0:03:07.5]} 8... f6 {[%clk 0:03:09.7]} 9. exf6 {[%clk 0:03:08.1]} 9... Nxf6
{[%clk 0:03:11.6]} 10. Nf3 {[%clk 0:03:09.3]} 10... Bd6 {[%clk 0:03:13.2]} 11.
O-O {[%clk 0:03:06.6]} 11... Qc7 {[%clk 0:03:14.6]} 12. h3 {[%clk 0:03:07.7]}
12... O-O {[%clk 0:03:15.7]} 13. Be3 {[%clk 0:03:07.7]} 13... e5 {[%clk
0:03:13.7]} 14. dxe5 {[%clk 0:03:04]} 14... Nxe5 {[%clk 0:03:15.6]} 15. Ned4
{[%clk 0:03:01.4]} 15... a6 {[%clk 0:03:03.6]} 16. Rc1 {[%clk 0:03:01.3]} 16...
Qb8 {[%clk 0:03:05.2]} 17. Be2 {[%clk 0:02:50.4]} 17... Bd7 {[%clk 0:03:04.5]}
18. Qb3 {[%clk 0:02:44.7]} 18... Kh8 {[%clk 0:02:59.7]} 19. Rfd1 {[%clk
0:02:42.3]} 19... b5 {[%clk 0:02:39.2]} 20. Nxe5 {[%clk 0:02:39.1]} 20... Bxe5
{[%clk 0:02:40.1]} 21. Nf3 {[%clk 0:02:25.4]} 21... Bd6 {[%clk 0:02:32.6]} 22.
Bd4 {[%clk 0:02:25.2]} 22... Be6 {[%clk 0:02:03.4]} 23. Rc6 {[%clk 0:02:22.5]}
23... Ne4 {[%clk 0:01:53.2]} 24. Be5 {[%clk 0:02:04]} 24... Bxe5 {[%clk
0:01:22.8]} 25. Rxe6 {[%clk 0:02:03.5]} 25... Nc5 {[%clk 0:01:08.2]} 26. Qxd5
{[%clk 0:01:54.5]} 26... Nxe6 {[%clk 0:01:07.9]} 27. Nxe5 {[%clk 0:01:46]} 27...
Nf4 {[%clk 0:01:06.8]} 28. Qe4 {[%clk 0:01:24.1]} 28... Nxe2+ {[%clk 0:00:55.1]}
29. Qxe2 {[%clk 0:01:25.2]} 29... Qe8 {[%clk 0:00:50.7]} 30. Rd7 {[%clk
0:01:15.7]} 30... Rd8 {[%clk 0:00:20.4]} 31. Rc7 {[%clk 0:00:57.5]} 31... Kg8
{[%clk 0:00:16.8]} 32. Qe3 {[%clk 0:00:35.2]} 32... Qe6 {[%clk 0:00:14.7]} 33.
Qg3 {[%clk 0:00:33.6]} 33... Rd1+ {[%clk 0:00:10]} 34. Kh2 {[%clk 0:00:33.5]}
34... Qf6 {[%clk 0:00:11.3]} 35. Nd7 {[%clk 0:00:27.4]} 35... Rxd7 {[%clk
0:00:11.4]} 36. Rxd7 {[%clk 0:00:27.7]} 36... Rf7 {[%clk 0:00:08.8]} 37. Rxf7
{[%clk 0:00:21.3]} 37... Kxf7 {[%clk 0:00:10.7]} 38. Qc7+ {[%clk 0:00:19.8]}
38... Kg6 {[%clk 0:00:11.5]} 39. Qg3+ {[%clk 0:00:19.4]} 39... Kf7 {[%clk
0:00:12.5]} 40. b4 {[%clk 0:00:17.2]} 40... Ke6 {[%clk 0:00:13]} 41. Qc7 {[%clk
0:00:15]} 41... Qe5+ {[%clk 0:00:13.6]} 42. Qxe5+ {[%clk 0:00:14.5]} 42... Kxe5
{[%clk 0:00:15.5]} 43. g4 {[%clk 0:00:09.7]} 43... Kd4 {[%clk 0:00:16.7]} 44. f4
{[%clk 0:00:09.8]} 44... Kc4 {[%clk 0:00:13.8]} 45. f5 {[%clk 0:00:10.6]} 45...
Kxb4 {[%clk 0:00:15.1]} 46. g5 {[%clk 0:00:11.6]} 46... Kc5 {[%clk 0:00:10.1]}
47. Kg3 {[%clk 0:00:12.9]} 47... Kd6 {[%clk 0:00:10]} 48. Kf4 {[%clk 0:00:14.2]}
48... a5 {[%clk 0:00:11]} 49. h4 {[%clk 0:00:13.8]} 49... b4 {[%clk 0:00:12.1]}
50. Ke4 {[%clk 0:00:15.1]} 50... a4 {[%clk 0:00:13.3]} 51. Kd3 {[%clk
0:00:16.3]} 51... Ke5 {[%clk 0:00:14]} 52. f6 {[%clk 0:00:16.1]} 52... gxf6
{[%clk 0:00:15.9]} 53. gxf6 {[%clk 0:00:17]} 53... Kxf6 {[%clk 0:00:17.2]} 54.
Kc4 {[%clk 0:00:16.2]} 54... b3 {[%clk 0:00:18.2]} 55. axb3 {[%clk 0:00:17.5]}
55... axb3 {[%clk 0:00:19.7]} 56. Kxb3 {[%clk 0:00:18.9]} 56... Kf5 {[%clk
0:00:21.1]} 57. Kc3 {[%clk 0:00:20.5]} 57... Kg4 {[%clk 0:00:22.5]} 58. Kd2
{[%clk 0:00:22.1]} 58... Kxh4 {[%clk 0:00:23.9]} 59. Ke2 {[%clk 0:00:22.9]}
59... Kg3 {[%clk 0:00:25]} 60. Kf1 {[%clk 0:00:24.3]} 60... h5 {[%clk
0:00:24.8]} 61. Kg1 {[%clk 0:00:25.6]} 61... h4 {[%clk 0:00:26.7]} 62. Kh1
{[%clk 0:00:27]} 62... h3 {[%clk 0:00:28.6]} 63. Kg1 {[%clk 0:00:28.3]} 63...
h2+ {[%clk 0:00:30.5]} 64. Kh1 {[%clk 0:00:29.7]} 64... Kh3 {[%clk 0:00:32.4]}
1/2-1/2

[Event "*** Titled Tuesday Blitz"]
[Site "Chess.com"]
[Date "2018.01.02"]
[Round "2"]
[White "TregubovP"]
[Black "mishanick"]
[Result "1-0"]
[WhiteElo "2538"]
[BlackElo "2775"]
[TimeControl "180+2"]
[EndTime "13:23:48 PST"]
[Termination "TregubovP won by resignation"]

1. d4 {[%clk 0:03:00.8]} 1... Nf6 {[%clk 0:02:58.4]} 2. c4 {[%clk 0:03:02.1]}
2... e6 {[%clk 0:02:59]} 3. Nc3 {[%clk 0:03:02.3]} 3... d5 {[%clk 0:02:58.1]} 4.
Nf3 {[%clk 0:03:01.2]} 4... c5 {[%clk 0:02:58.7]} 5. cxd5 {[%clk 0:03:00.8]}
5... Nxd5 {[%clk 0:03:00.6]} 6. e4 {[%clk 0:03:01.6]} 6... Nxc3 {[%clk
0:03:01.7]} 7. bxc3 {[%clk 0:03:03]} 7... cxd4 {[%clk 0:03:03.4]} 8. cxd4 {[%clk
0:03:04.6]} 8... Bb4+ {[%clk 0:03:04.8]} 9. Bd2 {[%clk 0:03:06.2]} 9... Bxd2+
{[%clk 0:03:06.4]} 10. Qxd2 {[%clk 0:03:07.8]} 10... O-O {[%clk 0:03:05.6]} 11.
Bc4 {[%clk 0:03:09.3]} 11... Nd7 {[%clk 0:03:06.1]} 12. O-O {[%clk 0:03:10.5]}
12... b6 {[%clk 0:03:07.4]} 13. a4 {[%clk 0:03:12]} 13... Bb7 {[%clk 0:03:07.6]}
14. Rfe1 {[%clk 0:03:13.3]} 14... Nf6 {[%clk 0:03:07.3]} 15. Bd3 {[%clk
0:03:13.3]} 15... h6 {[%clk 0:02:58.7]} 16. a5 {[%clk 0:03:12.9]} 16... a6
{[%clk 0:02:59.7]} 17. axb6 {[%clk 0:03:12.3]} 17... Qxb6 {[%clk 0:03:01.6]} 18.
Qa5 {[%clk 0:03:07.8]} 18... Qxa5 {[%clk 0:02:55.9]} 19. Rxa5 {[%clk 0:03:07.6]}
19... Rfd8 {[%clk 0:02:57.5]} 20. h3 {[%clk 0:02:59.5]} 20... Rac8 {[%clk
0:02:50.9]} 21. Ra3 {[%clk 0:02:37.1]} 21... Rc7 {[%clk 0:02:44.1]} 22. Kf1
{[%clk 0:02:19.9]} 22... Rdc8 {[%clk 0:02:41.8]} 23. e5 {[%clk 0:02:20.2]} 23...
Nd5 {[%clk 0:02:35.3]} 24. Bxa6 {[%clk 0:02:21.1]} 24... Ra8 {[%clk 0:01:55.2]}
25. Rea1 {[%clk 0:02:21.4]} 25... Rc3 {[%clk 0:01:46.8]} 26. Ra5 {[%clk
0:02:12]} 26... Rxa6 {[%clk 0:01:24.5]} 27. Rxa6 {[%clk 0:02:12.1]} 27... Bxa6+
{[%clk 0:01:26.4]} 28. Rxa6 {[%clk 0:02:12.4]} 28... Rc1+ {[%clk 0:01:27.8]} 29.
Ke2 {[%clk 0:02:12.7]} 29... Nf4+ {[%clk 0:01:22.9]} 30. Kd2 {[%clk 0:02:10.8]}
30... Rf1 {[%clk 0:01:21.1]} 31. Ra8+ {[%clk 0:01:42.7]} 31... Kh7 {[%clk
0:01:21.4]} 32. Rf8 {[%clk 0:01:40.5]} 32... g5 {[%clk 0:00:27.8]} 33. Rxf7+
{[%clk 0:01:35.2]} 33... Kg8 {[%clk 0:00:28.6]} 34. Rf6 {[%clk 0:01:35.8]} 34...
Rxf2+ {[%clk 0:00:28.6]} 35. Ke1 {[%clk 0:01:18.7]} 35... Rxg2 {[%clk
0:00:26.3]} 36. Rxh6 {[%clk 0:01:17.3]} 36... Kg7 {[%clk 0:00:21.7]} 37. Rf6
{[%clk 0:01:17.2]} 37... Nxh3 {[%clk 0:00:10.9]} 38. Rxe6 {[%clk 0:01:15.2]}
38... Nf4 {[%clk 0:00:12.4]} 39. Rf6 {[%clk 0:01:13.8]} 39... Nd3+ {[%clk
0:00:09.4]} 40. Kf1 {[%clk 0:01:13.8]} 40... Rf2+ {[%clk 0:00:10.6]} 41. Kg1
{[%clk 0:01:15.1]} 41... g4 {[%clk 0:00:11.8]} 42. Ne1 {[%clk 0:00:58.4]} 42...
Rd2 {[%clk 0:00:05.3]} 43. Nxd3 {[%clk 0:00:59.3]} 43... Rxd3 {[%clk 0:00:06.9]}
44. Rf4 {[%clk 0:01:00.4]} 44... g3 {[%clk 0:00:08]} 45. Kg2 {[%clk 0:01:01.6]}
45... Re3 {[%clk 0:00:08.7]} 46. Rf3 {[%clk 0:00:59.7]} 46... Re4 {[%clk
0:00:09.2]} 47. Rxg3+ {[%clk 0:00:59.9]} 47... Kf7 {[%clk 0:00:10.6]} 48. Rd3
{[%clk 0:01:01.4]} 48... Ke6 {[%clk 0:00:11.9]} 49. Kf3 {[%clk 0:01:02.2]} 49...
Rh4 {[%clk 0:00:13.5]} 50. Kg3 {[%clk 0:01:02.7]} 50... Re4 {[%clk 0:00:14.3]}
51. Kf3 {[%clk 0:01:00.5]} 51... Rh4 {[%clk 0:00:15.1]} 52. Rd1 {[%clk
0:00:57.1]} 52... Kd5 {[%clk 0:00:15.9]} 53. Re1 {[%clk 0:00:57.3]} 53... Rh8
{[%clk 0:00:09.3]} 54. Kf4 {[%clk 0:00:54.6]} 54... Rf8+ {[%clk 0:00:09.4]} 55.
Kg5 {[%clk 0:00:55.4]} 55... Ke6 {[%clk 0:00:10.4]} 56. Ra1 {[%clk 0:00:52]}
56... Kd5 {[%clk 0:00:11.8]} 57. Re1 {[%clk 0:00:49.3]} 57... Ke6 {[%clk
0:00:11.7]} 58. Kg6 {[%clk 0:00:49.7]} 58... Rf4 {[%clk 0:00:12.2]} 59. d5+
{[%clk 0:00:48.1]} 59... Ke7 {[%clk 0:00:13.6]} 60. Ra1 {[%clk 0:00:42]} 60...
Rd4 {[%clk 0:00:15.2]} 61. Ra7+ {[%clk 0:00:42.8]} 61... Kd8 {[%clk 0:00:16.8]}
62. d6 {[%clk 0:00:44]} 62... Rd5 {[%clk 0:00:17.5]} 63. Kf6 {[%clk 0:00:44.9]}
63... Rd1 {[%clk 0:00:19.4]} 64. Ke6 {[%clk 0:00:45.7]} 64... Kc8 {[%clk
0:00:20.8]} 65. Ra8+ {[%clk 0:00:46.3]} 65... Kb7 {[%clk 0:00:22.2]} 66. Rh8
{[%clk 0:00:47.7]} 66... Kc6 {[%clk 0:00:23.3]} 67. Rc8+ {[%clk 0:00:48.1]}
67... Kb7 {[%clk 0:00:24.8]} 68. d7 {[%clk 0:00:49.6]} 1-0